fUST/lending_fUST_20260111
["ID","MTS","AMOUNT","RATE_DAILY","PERIOD"]
[401317158,1768131045270,-594.49843147,0.00016438,2]
[401317159,1768131045280,-1552.92932298,0.00016438,2]
[401317160,1768131045291,-3000.0,0.00016438,2]
[401317161,1768131045300,-3000.0,0.00016438,2]
[401317162,1768131045311,-3002.60955562,0.00016438,2]
[401317163,1768131045321,-3000.0,0.00016438,2]
[401317165,1768131045419,-3000.0,0.00016438,2]
[401317166,1768131045430,-260.15865923,0.00016438,2]
[401317167,1768131045444,-1000.0,0.00016456,2]
[401317168,1768131045454,-791.0,0.00016456,2]
[401317169,1768131045463,-2545.0,0.0001648,2]
[401317170,1768131045473,-3500.0,0.0001656,2]
[401317171,1768131045482,-3500.0,0.0001656,2]
[401317172,1768131045492,-3500.0,0.0001656,2]
[401317173,1768131045501,-3500.0,0.0001656,2]
[401317174,1768131045511,-3500.0,0.0001656,2]
[401317175,1768131045521,-3500.0,0.0001656,2]
[401317176,1768131045530,-3500.0,0.0001656,2]
[401317177,1768131045539,-153.67,0.000166,2]
[401317178,1768131045548,-2545.0,0.00016617,2]
[401317179,1768131045558,-2545.0,0.00016754,2]
[401317180,1768131045567,-228.77,0.000168,2]
[401317181,1768131045577,-18916.42992676,0.00016879,2]
[401317182,1768131045586,-2545.0,0.00016891,2]
[401317183,1768131045595,-2203.0,0.0001696,2]
[401317184,1768131045604,-2578.16970935,0.00016986,2]
[401317185,1768131045614,-500.0,0.00016986,2]
[401317186,1768131045623,-3500.0,0.00016986,2]
[401317187,1768131045632,-3500.0,0.00016986,2]
[401317188,1768131045642,-29268.59240056,0.00017,2]
[401317189,1768131045651,-4999.99999901,0.00017,2]
[401317190,1768131045660,-2553.0,0.00017028,2]
[401317191,1768131045669,-348.6340507,0.00017054,2]
[401317192,1768131045678,-4000.0,0.00017108,2]
[401317194,1768131045688,-1962.04250286,0.00017108,2]
[401317195,1768131045697,-90377.964834,0.00017108,2]
[401317196,1768131045707,-4000.0,0.00017108,2]
[401317197,1768131045716,-4000.0,0.00017108,2]
[401317198,1768131045725,-3000.0,0.00017108,2]
[401317199,1768131045735,-4000.0,0.00017108,2]
[401317200,1768131045744,-4000.0,0.00017108,2]
[401317201,1768131045754,-228.77,0.000173,2]
[401317202,1768131045763,-5000.0,0.00017412,2]
[401317203,1768131045773,-2500.0,0.00017534,2]
[401317204,1768131045785,-4000.0,0.00017534,2]
[401317206,1768131045795,-153.67,0.000176,2]
[401317207,1768131045804,-1087.80747027,0.00017625,2]
[401317208,1768131045815,-4500.0,0.00017656,2]
[401317209,1768131045826,-4500.0,0.00017656,2]
[401317210,1768131045837,-878.46600243,0.00017656,2]
[401317211,1768131045847,-3500.0,0.00017656,2]
[401317212,1768131045856,-1000.0,0.00017656,2]
[401317213,1768131045867,-1041.66666667,0.00017694,2]
[401317214,1768131045878,-228.77,0.000178,2]
[401317215,1768131045889,-567.54835774,0.00018082,2]
[401317216,1768131045900,-163.43551009,0.00018082,3]
[401317218,1768131045911,-1000.0,0.00018102,2]
[401317219,1768131045921,-1000.0,0.00018102,2]
[401317220,1768131045930,-468.6,0.00018194,2]
[401317221,1768131045939,-2495.04726907,0.00018204,2]
[401317222,1768131045948,-1642.48470631,0.00018204,2]
[401317223,1768131045957,-228.77,0.000183,2]
[401317224,1768131045967,-153.67,0.000185,2]
[401317225,1768131045975,-157.18,0.00018616,30]
[401317226,1768131045984,-5000.0,0.00018863,2]
[401317227,1768131045993,-228.77,0.000189,2]
[401317228,1768131046002,-303.10001603,0.000189,2]
[401317229,1768131046012,-303.10001603,0.000189,2]
[401317230,1768131046021,-385.1190095,0.00019054,2]
[401317231,1768131046030,-303.10001603,0.00019089,2]
[401317232,1768131046041,-303.10001603,0.00019089,2]
[401317233,1768131046051,-506.7938,0.00019178,2]
[401317234,1768131046060,-200.0,0.00019178,2]
[401317235,1768131046071,-506.7938,0.00019178,2]
[401317236,1768131046080,-506.7938,0.00019178,2]
[401317237,1768131046091,-13367.01,0.000192,2]
[401317238,1768131046101,-163.88,0.000192,2]
[401317239,1768131046111,-166.96,0.000192,2]
[401317240,1768131046122,-167.58,0.000192,2]
[401317241,1768131046132,-303.10001603,0.00019278,2]
[401317242,1768131046141,-303.10001603,0.00019278,2]
[401317243,1768131046150,-2140.41,0.000193,2]
[401317244,1768131046159,-183.38,0.00019332,30]
[401317245,1768131046168,-228.77,0.000194,2]
[401317246,1768131046177,-303.10001603,0.00019467,2]
[401317247,1768131046186,-303.10001603,0.00019467,2]
[401317248,1768131046196,-153.67,0.000195,2]
[401317249,1768131046206,-303.10001603,0.00019656,2]
[401317250,1768131046220,-303.10001603,0.00019656,2]
[401317251,1768131046230,-454.65002405,0.00019845,4]
[401317252,1768131046240,-454.65002405,0.00019845,4]
[401317253,1768131046251,-228.77,0.000199,2]
[401317254,1768131046260,-468.6,0.00019905,2]
[401317255,1768131046272,-1000.0,0.00019912,2]
[401317256,1768131046283,-1000.0,0.00019912,2]
[401317257,1768131046293,-579.0,0.00019912,2]
[401317258,1768131046304,-506.7938,0.0002,4]
[401317259,1768131046313,-151.97857558,0.0002,2]
[401317260,1768131046322,-52113.00553346,0.0002,2]
[401317261,1768131046332,-1087.80747027,0.00020008,2]
[401317262,1768131046342,-454.65002405,0.00020034,4]
[401317263,1768131046352,-454.65002405,0.00020034,4]
[401317264,1768131046361,-209.58,0.00020048,30]
[401317265,1768131046371,-454.65002405,0.00020223,4]
[401317266,1768131046381,-454.65002405,0.00020223,4]
[401317267,1768131046391,-228.77,0.000204,2]
[401317268,1768131046400,-506.7938,0.00020411,5]
[401317269,1768131046409,-454.65002405,0.00020412,4]
[401317270,1768131046418,-606.20003205,0.00020412,4]
[401317271,1768131046428,-153.67,0.000205,2]
[401317272,1768131046438,-604.67437126,0.00020601,4]
[401317273,1768131046451,-18916.42992676,0.00020841,2]
[401317274,1768131046460,-151.0,0.000209,3]
[401317275,1768131046471,-228.77,0.000209,2]
[401317276,1768131046481,-421.60396829,0.00021054,2]
[401317277,1768131046491,-2870.56440789,0.0002106,2]
[401317278,1768131046502,-228.77,0.000214,2]
[401317279,1768131046512,-153.67,0.000214,2]
[401317280,1768131046522,-12011.78673207,0.000215,2]
[401317281,1768131046531,-468.6,0.00021616,2]
[401317282,1768131046540,-228.77,0.000219,2]
[401317283,1768131046550,-1000.0,0.00021903,10]
[401317284,1768131046559,-1000.0,0.00021903,10]
[401317285,1768131046570,-1000.0,0.00021903,10]
[401317286,1768131046580,-152.90727816,0.00021918,2]
[401317287,1768131046591,-1087.80747027,0.00022391,2]
[401317288,1768131046602,-228.77,0.000224,2]
[401317289,1768131046611,-153.67,0.000224,2]
[401317290,1768131046621,-258.38,0.00022532,2]
[401317291,1768131046631,-228.77,0.00023,2]
[401317292,1768131046641,-458.08892709,0.00023054,2]
[401317293,1768131046652,-468.6,0.00023327,2]
[401317294,1768131046662,-153.67,0.000234,2]
[401317295,1768131046672,-228.77,0.000235,2]
[401317296,1768131046684,-13367.01,0.000238,2]
[401317297,1768131046695,-228.77,0.00024,2]
[401317298,1768131046705,-1000.0,0.00024093,10]
[401317299,1768131046715,-1000.0,0.00024093,10]
[401317300,1768131046726,-1000.0,0.00024093,10]
[401317301,1768131046736,-715.0,0.00024093,10]
[401317302,1768131046747,-153.67,0.000243,2]
[401317303,1768131046757,-228.77,0.000245,2]
[401317304,1768131046766,-630.83049355,0.0002465,2]
[401317305,1768131046775,-500.0,0.00024658,2]
[401317306,1768131046784,-1087.80747027,0.00024774,2]
[401317307,1768131046793,-500.0,0.00024795,2]
[401317308,1768131046804,-18916.42992676,0.00024804,2]
[401317309,1768131046814,-400097.821185,0.000249,2]
[401317310,1768131046825,-500.0,0.00024932,2]
[401317311,1768131046835,-228.77,0.00025,2]
[401317312,1768131046845,-2675.46555144,0.00025,2]
[401317313,1768131046855,-20757.85955183,0.00025,2]
[401317314,1768131046865,-10364.0,0.00025,2]
[401317315,1768131046875,-500.0,0.00025,2]
[401317316,1768131046886,-2074.08935166,0.00025,2]
[401317317,1768131046896,-759.6161654,0.00025,2]
[401317318,1768131046907,-468.6,0.00025038,2]
[401317319,1768131046918,-494.57388588,0.00025054,2]
[401317320,1768131046928,-500.0,0.00025069,2]
[401317321,1768131046939,-2140.41,0.000251,14]
[401317322,1768131046950,-250.0,0.00025205,2]
[401317323,1768131046959,-500.0,0.00025206,2]
[401317324,1768131046968,-153.67,0.000253,2]
[401317325,1768131046977,-259.77529652,0.00025315,14]
[401317326,1768131046986,-500.0,0.00025343,2]
[401317327,1768131046995,-500.0,0.0002548,2]
[401317328,1768131047005,-228.77,0.000255,2]
[401317329,1768131047016,-1000.0,0.000255,2]
[401317330,1768131047027,-500.0,0.00025617,2]
[401317331,1768131047037,-350.0,0.00025753,2]
[401317332,1768131047047,-255.99235489,0.00025754,2]
[401317333,1768131047056,-728.329358,0.0002587,7]
[401317334,1768131047067,-728.329358,0.0002587,7]
[401317335,1768131047077,-151.0,0.0002587,7]
[401317336,1768131047087,-728.329358,0.0002587,7]
[401317337,1768131047099,-151.0,0.0002587,7]
[401317338,1768131047108,-728.329358,0.0002587,7]
[401317339,1768131047117,-151.0,0.0002587,2]
[401317340,1768131047127,-156.419626,0.0002587,7]
[401317341,1768131047137,-151.0,0.0002587,7]
[401317342,1768131047149,-2000.51544348,0.0002587,2]
[401317343,1768131047159,-228.77,0.00026,2]
[401317344,1768131047169,-53944.89189628,0.00026,30]
[401317345,1768131047180,-153.67,0.000263,2]
[401317346,1768131047189,-450.0,0.00026301,2]
[401317347,1768131047199,-228.77,0.000265,2]
[401317348,1768131047212,-1000.0,0.00026503,30]
[401317349,1768131047222,-1000.0,0.00026503,30]
[401317350,1768131047232,-1000.0,0.00026503,30]
[401317351,1768131047244,-225.859576,0.00026503,7]
[401317352,1768131047256,-151.0,0.00026503,7]
[401317353,1768131047265,-151.0,0.00026503,7]
[401317354,1768131047274,-151.0,0.00026503,7]
[401317355,1768131047284,-1355.369352,0.00026503,7]
[401317356,1768131047294,-1355.369352,0.00026503,7]
[401317357,1768131047303,-1355.369352,0.00026503,7]
[401317358,1768131047312,-1355.369352,0.00026503,7]
[401317359,1768131047321,-151.0,0.00026503,7]
[401317360,1768131047332,-151.0,0.00026503,7]
[401317361,1768131047346,-152.567384,0.00026503,7]
[401317362,1768131047356,-151.0,0.00026503,7]
[401317363,1768131047366,-151.0,0.00026503,7]
[401317364,1768131047376,-151.0,0.00026503,7]
[401317365,1768131047385,-151.0,0.00026503,7]
[401317366,1768131047395,-151.0,0.00026503,7]
[401317367,1768131047405,-151.0,0.00026503,7]
[401317368,1768131047414,-13367.01,0.000267,2]
[401317369,1768131047423,-468.6,0.00026749,2]
[401317370,1768131047432,-550.0,0.00026849,2]
[401317371,1768131047442,-182.0,0.00026959,22]
[401317372,1768131047451,-531.05884467,0.00027054,2]
[401317373,1768131047461,-2870.56440789,0.0002709,2]
[401317374,1768131047470,-228.77,0.000271,2]
[401317375,1768131047480,-151.292503,0.00027108,7]
[401317376,1768131047489,-264.224,0.00027108,7]
[401317377,1768131047499,-264.224,0.00027108,7]
[401317378,1768131047590,-264.224,0.00027108,7]
[401317379,1768131047599,-264.224,0.00027108,7]
[401317380,1768131047608,-151.0,0.00027108,7]
[401317381,1768131047617,-151.0,0.00027108,7]
[401317382,1768131047626,-151.0,0.00027108,7]
[401317383,1768131047637,-301.393574,0.00027108,7]
[401317384,1768131047647,-151.0,0.00027108,7]
[401317385,1768131047658,-170.54126,0.00027108,7]
[401317386,1768131047667,-151.0,0.00027108,7]
[401317387,1768131047677,-164.871038,0.00027108,7]
[401317388,1768131047687,-151.0,0.00027108,7]
[401317389,1768131047696,-161.662681,0.00027108,7]
[401317390,1768131047706,-151.0,0.00027108,7]
[401317391,1768131047715,-151.0,0.00027108,7]
[401317392,1768131047724,-151.0,0.00027108,7]
[401317393,1768131047734,-173.073557,0.00027108,7]
[401317394,1768131047743,-151.0,0.00027108,7]
[401317395,1768131047752,-151.0,0.00027108,7]
[401317396,1768131047761,-151.0,0.00027108,7]
[401317397,1768131047772,-173.073557,0.00027108,7]
[401317398,1768131047781,-151.0,0.00027108,7]
[401317399,1768131047790,-151.0,0.00027108,7]
[401317400,1768131047799,-173.073557,0.00027108,7]
[401317401,1768131047810,-173.073557,0.00027108,7]
[401317402,1768131047819,-60251.976556,0.00027108,2]
[401317403,1768131047829,-181.17141011,0.00027119,2]
[401317404,1768131047842,-1087.80747027,0.00027158,2]
[401317405,1768131047853,-153.67,0.000272,2]
[401317406,1768131047863,-394.08412848,0.0002739,7]
[401317407,1768131047872,-702.10519323,0.00027397,5]
[401317408,1768131047881,-300.0,0.00027397,2]
[401317409,1768131047891,-300.0,0.00027397,2]
[401317410,1768131047900,-300.0,0.00027397,2]
[401317411,1768131047910,-300.0,0.00027397,2]
[401317412,1768131047920,-228.77,0.000276,2]
[401317413,1768131047930,-15330.50011171,0.00028,2]
[401317414,1768131047941,-520.4204079,0.00028,2]
[401317415,1768131047951,-155.5739919,0.00028011,5]
[401317416,1768131047961,-5000.0,0.00028037,2]
[401317417,1768131047970,-228.77,0.000281,2]
[401317418,1768131047979,-153.67,0.000282,2]
[401317419,1768131047989,-468.6,0.00028461,3]
[401317420,1768131047999,-228.77,0.000286,2]
[401317421,1768131048009,-212.0,0.00028603,30]
[401317422,1768131048018,-163.38,0.000287,3]
[401317423,1768131048027,-429431.6619482,0.0002876,14]
[401317424,1768131048036,-18916.42992676,0.00028766,2]
[401317425,1768131048046,-155.57399191,0.00028819,5]
[401317426,1768131048056,-2412.5313746,0.00029,10]
[401317427,1768131048065,-8382.93313115,0.0002902,2]
[401317428,1768131048076,-567.54380347,0.00029054,2]
[401317429,1768131048086,-228.77,0.000291,2]
[401317430,1768131048095,-153.67,0.000292,2]
[401317431,1768131048104,-500.0,0.00029449,7]
[401317432,1768131048114,-2665.91589527,0.00029513,2]
[401317433,1768131048125,-1087.80747027,0.00029541,2]
[401317434,1768131048134,-228.77,0.000296,2]
[401317435,1768131048145,-155.57399191,0.00029711,5]
[401317436,1768131048154,-5008.97139185,0.0003,10]
[401317437,1768131048163,-89030.96900453,0.0003,30]
[401317438,1768131048174,-258.50979211,0.0003,10]
[401317439,1768131048186,-151.0,0.0003013,14]
[401317440,1768131048196,-300.0,0.00030137,5]
[401317441,1768131048207,-1112.0,0.00030139,2]
[401317442,1768131048222,-2099.00986107,0.0003014,120]
[401317443,1768131048234,-468.6,0.00030172,4]
[401317444,1768131048245,-5000.0,0.00030203,2]
[401317445,1768131048255,-155.5739919,0.00030629,10]
[401317446,1768131048266,-163.0,0.00030795,42]
[401317447,1768131048278,-151.0,0.000308,15]
[401317448,1768131048289,-536.72987461,0.00030824,7]
[401317449,1768131048299,-556.64090381,0.00031,30]
[401317450,1768131048309,-604.02876226,0.00031054,2]
[401317451,1768131048319,-258.38,0.00031238,2]
[401317452,1768131048329,-155.57399191,0.00031577,10]
[401317453,1768131048339,-468.6,0.00031883,5]
[401317454,1768131048349,-2140.41,0.000319,14]
[401317455,1768131048358,-151.0,0.00031922,31]
[401317456,1768131048367,-151.0,0.00031922,31]
[401317457,1768131048377,-240.800368,0.00031922,31]
[401317458,1768131048387,-156.82101,0.00031922,31]
[401317459,1768131048397,-151.0,0.00031922,31]
[401317460,1768131048406,-151.0,0.00031922,31]
[401317461,1768131048415,-1371.756404,0.00031922,31]
[401317462,1768131048425,-1371.756404,0.00031922,31]
[401317463,1768131048434,-1371.756404,0.00031922,31]
[401317464,1768131048444,-1371.756404,0.00031922,31]
[401317465,1768131048454,-151.0,0.00031922,31]
[401317466,1768131048464,-151.0,0.00031922,31]
[401317467,1768131048473,-151.0,0.00031922,31]
[401317468,1768131048482,-151.0,0.00031922,31]
[401317469,1768131048491,-5142.43646252,0.00031922,30]
[401317470,1768131048501,-1087.80747027,0.00031924,2]
[401317471,1768131048511,-588120.82157124,0.00031998,2]
[401317472,1768131048519,-151.0,0.00031998,31]
[401317473,1768131048529,-151.0,0.00031998,31]
[401317474,1768131048538,-181.667878,0.00031998,31]
[401317475,1768131048547,-1355.369352,0.00031998,31]
[401317476,1768131048557,-1355.369352,0.00031998,31]
[401317477,1768131048566,-1355.369352,0.00031998,31]
[401317478,1768131048575,-1355.369352,0.00031998,31]
[401317479,1768131048586,-151.0,0.00031998,7]
[401317480,1768131048596,-151.0,0.00031998,7]
[401317481,1768131048606,-151.0,0.00031998,31]
[401317482,1768131048615,-151.0,0.00031998,31]
[401317483,1768131048625,-151.0,0.00031998,31]
[401317484,1768131048635,-151.0,0.00031998,31]
[401317485,1768131048644,-239.620179,0.00031998,31]
[401317486,1768131048654,-151.0,0.00031998,31]
[401317487,1768131048663,-728.329358,0.00031998,31]
[401317488,1768131048672,-728.329358,0.00031998,31]
[401317489,1768131048682,-151.0,0.00031998,31]
[401317490,1768131048702,-728.329358,0.00031998,31]
[401317491,1768131048721,-151.0,0.00031998,31]
[401317492,1768131048731,-728.329358,0.00031998,31]
[401317493,1768131048741,-151.0,0.00031998,2]
[401317494,1768131048751,-151.0,0.00031998,31]
[401317495,1768131048762,-1112.0,0.00031998,2]
[401317496,1768131048772,-1112.0,0.00031999,2]
[401317497,1768131048782,-162.09527137,0.00032,120]
[401317498,1768131048793,-869.0,0.0003225,2]
[401317499,1768131048803,-13367.01,0.000323,2]
[401317500,1768131048815,-5000.0,0.0003237,2]
[401317501,1768131048824,-870.0,0.00032399,2]
[401317502,1768131048834,-171.0,0.000324,120]
[401317503,1768131048844,-155.5739919,0.00032566,10]
[401317504,1768131048854,-18916.42992676,0.00032729,2]
[401317505,1768131048863,-999.0,0.00032876,120]
[401317506,1768131048874,-450.0,0.00032877,5]
[401317507,1768131048884,-868.0,0.00032904,7]
[401317508,1768131048895,-151.0,0.00032917,2]
[401317509,1768131048905,-151.0,0.00032917,2]
[401317510,1768131048915,-151.0,0.00032917,2]
[401317511,1768131048926,-151.0,0.00032917,2]
[401317512,1768131048937,-151.0,0.00032917,2]
[401317513,1768131048947,-151.0,0.00032917,2]
[401317514,1768131048956,-151.0,0.00032917,2]
[401317515,1768131048965,-151.0,0.00032917,2]
[401317516,1768131048975,-151.0,0.00032917,2]
[401317517,1768131048983,-151.0,0.00032917,2]
[401317518,1768131048992,-151.0,0.00032917,2]
[401317519,1768131049001,-151.0,0.00032917,2]
[401317520,1768131049010,-151.0,0.00032917,2]
[401317521,1768131049020,-151.0,0.00032917,2]
[401317522,1768131049031,-151.0,0.00032917,2]
[401317523,1768131049041,-151.0,0.00032917,2]
[401317524,1768131049050,-151.0,0.00032917,2]
[401317525,1768131049060,-151.0,0.00032917,2]
[401317526,1768131049070,-151.0,0.00032917,2]
[401317527,1768131049079,-151.0,0.00032917,2]
[401317528,1768131049090,-151.0,0.00032917,2]
[401317529,1768131049099,-151.0,0.00032917,2]
[401317530,1768131049109,-151.0,0.00032917,2]
[401317531,1768131049119,-151.0,0.00032917,2]
[401317532,1768131049130,-151.0,0.00032917,2]
[401317533,1768131049141,-151.0,0.00032917,2]
[401317534,1768131049151,-151.0,0.00032917,2]
[401317535,1768131049160,-151.0,0.00032917,2]
[401317536,1768131049171,-151.0,0.00032917,2]
[401317537,1768131049182,-151.0,0.00032917,2]
[401317538,1768131049192,-151.0,0.00032917,2]
[401317539,1768131049201,-151.0,0.00032917,2]
[401317540,1768131049215,-151.0,0.00032917,2]
[401317541,1768131049226,-151.0,0.00032917,2]
[401317542,1768131049236,-151.0,0.00032917,2]
[401317543,1768131049247,-151.0,0.00032917,2]
[401317544,1768131049258,-151.0,0.00032917,2]
[401317545,1768131049269,-151.0,0.00032917,2]
[401317546,1768131049280,-151.0,0.00032917,2]
[401317547,1768131049292,-151.0,0.00032917,2]
[401317548,1768131049303,-1002.20117456,0.00032918,15]
[401317549,1768131049313,-174.0,0.00032986,57]
[401317550,1768131049322,-52532.5888155,0.00033,10]
[401317551,1768131049332,-1762.55867719,0.00033,4]
[401317552,1768131049343,-198.80282405,0.00033,30]
[401317553,1768131049352,-640.51372106,0.00033054,120]
[401317554,1768131049361,-168.0,0.00033091,7]
[401317555,1768131049371,-2870.56440789,0.0003312,2]
[401317556,1768131049380,-168.0,0.00033127,2]
[401317557,1768131049390,-180.93086226,0.000332,117]
[401317558,1768131049399,-180.93086222,0.000332,117]
[401317559,1768131049408,-180.93086222,0.000332,117]
[401317560,1768131049417,-180.93086222,0.000332,117]
[401317561,1768131049427,-1045039.0068,0.0003322,30]
[401317562,1768131049436,-160.002934,0.0003322,31]
[401317563,1768131049446,-200.586455,0.0003322,31]
[401317564,1768131049455,-172.824008,0.0003322,31]
[401317565,1768131049465,-151.0,0.0003322,31]
[401317566,1768131049474,-151.0,0.0003322,31]
[401317567,1768131049484,-151.0,0.0003322,31]
[401317568,1768131049493,-151.0,0.0003322,31]
[401317569,1768131049503,-151.0,0.0003322,31]
[401317570,1768131049591,-151.0,0.0003322,31]
[401317571,1768131049601,-151.0,0.0003322,31]
[401317572,1768131049611,-151.0,0.0003322,31]
[401317573,1768131049620,-151.0,0.0003322,31]
[401317574,1768131049629,-151.0,0.0003322,31]
[401317575,1768131049638,-151.0,0.0003322,31]
[401317576,1768131049647,-151.0,0.0003322,31]
[401317577,1768131049657,-151.0,0.0003322,31]
[401317578,1768131049666,-151.0,0.0003322,31]
[401317579,1768131049675,-155.856993,0.0003322,31]
[401317580,1768131049685,-151.0,0.0003322,31]
[401317581,1768131049695,-151.0,0.0003322,31]
[401317582,1768131049704,-163.313773,0.0003322,31]
[401317583,1768131049714,-151.0,0.0003322,31]
[401317584,1768131049724,-264.224,0.0003322,31]
[401317585,1768131049733,-264.224,0.0003322,31]
[401317586,1768131049742,-264.224,0.0003322,31]
[401317587,1768131049751,-264.224,0.0003322,31]
[401317588,1768131049761,-192.928076,0.0003322,31]
[401317589,1768131049770,-151.0,0.0003322,31]
[401317590,1768131049779,-151.0,0.0003322,31]
[401317591,1768131049788,-151.0,0.0003322,31]
[401317592,1768131049798,-152.205819,0.0003322,31]
[401317593,1768131049808,-151.0,0.0003322,31]
[401317594,1768131049817,-151.0,0.0003322,31]
[401317595,1768131049827,-151.0,0.0003322,31]
[401317596,1768131049837,-151.0,0.0003322,31]
[401317597,1768131049846,-173.073557,0.0003322,31]
[401317598,1768131049856,-151.0,0.0003322,31]
[401317599,1768131049866,-151.0,0.0003322,31]
[401317600,1768131049875,-151.0,0.0003322,31]
[401317601,1768131049885,-173.073557,0.0003322,31]
[401317602,1768131049896,-151.0,0.0003322,31]
[401317603,1768131049906,-151.0,0.0003322,31]
[401317604,1768131049915,-173.073557,0.0003322,31]
[401317605,1768131049925,-173.073557,0.0003322,31]
[401317606,1768131049934,-151.0,0.0003322,31]
[401317607,1768131049943,-151.0,0.0003322,31]
[401317608,1768131049953,-151.0,0.0003322,31]
[401317609,1768131049962,-160.161373,0.0003322,31]
[401317610,1768131049971,-1371.756404,0.0003322,31]
[401317611,1768131049980,-1371.756404,0.0003322,31]
[401317612,1768131049989,-1371.756404,0.0003322,31]
[401317613,1768131049998,-1371.756404,0.0003322,31]
[401317614,1768131050008,-151.0,0.0003322,31]
[401317615,1768131050017,-151.0,0.0003322,31]
[401317616,1768131050026,-151.0,0.0003322,31]
[401317617,1768131050035,-151.0,0.0003322,31]
[401317618,1768131050044,-151.0,0.0003322,31]
[401317619,1768131050054,-151.0,0.0003322,31]
[401317620,1768131050063,-1355.369352,0.0003322,31]
[401317621,1768131050072,-1355.369352,0.0003322,31]
[401317622,1768131050081,-1355.369352,0.0003322,31]
[401317623,1768131050091,-1355.369352,0.0003322,31]
[401317624,1768131050101,-151.0,0.0003322,7]
[401317625,1768131050110,-151.0,0.0003322,7]
[401317626,1768131050120,-151.0,0.0003322,31]
[401317627,1768131050131,-151.0,0.0003322,31]
[401317628,1768131050142,-151.0,0.0003322,31]
[401317629,1768131050152,-151.0,0.0003322,31]
[401317630,1768131050163,-209.953007,0.0003322,31]
[401317631,1768131050172,-728.329358,0.0003322,31]
[401317632,1768131050182,-728.329358,0.0003322,31]
[401317633,1768131050192,-151.0,0.0003322,31]
[401317634,1768131050202,-728.329358,0.0003322,31]
[401317635,1768131050218,-151.0,0.0003322,31]
[401317636,1768131050227,-728.329358,0.0003322,31]
[401317637,1768131050237,-152.162088,0.0003322,2]
[401317638,1768131050247,-221.765393,0.0003322,31]
[401317639,1768131050256,-168.0,0.00033293,2]
[401317640,1768131050266,-168.0,0.0003354,2]
[401317641,1768131050275,-468.6,0.00033594,6]
[401317642,1768131050284,-801.82496169,0.00033611,2]
[401317643,1768131050294,-210.0,0.00033699,5]
[401317644,1768131050304,-163.38,0.000337,10]
[401317645,1768131050313,-168.0,0.00033715,7]
[401317646,1768131050322,-2600.19116857,0.00033919,2]
[401317647,1768131050332,-999.0,0.00033972,120]
[401317648,1768131050342,-1041.66666667,0.00034,30]
[401317649,1768131050351,-2600.19116857,0.00034019,2]
[401317650,1768131050360,-369.0,0.00034026,2]
[401317651,1768131050370,-356.69,0.00034032,60]
[401317652,1768131050379,-800.0,0.00034099,2]
[401317653,1768131050389,-356.69855,0.00034132,60]
[401317654,1768131050399,-165.11729757,0.00034246,120]
[401317655,1768131050409,-629.16420479,0.00034299,2]
[401317656,1768131050418,-1087.80747027,0.00034307,2]
[401317657,1768131050427,-2600.19116857,0.00034349,2]
[401317658,1768131050436,-547.0,0.0003436,30]
[401317659,1768131050446,-756.0,0.0003436,30]
[401317660,1768131050456,-720.0,0.0003436,30]
[401317661,1768131050465,-800.0,0.00034415,2]